Cogmind - Beta 10.2 *** ADVENTURER MODE // 2021.03.18 @ 15:04:54 Player: Era Result: Destroyed by S-27 Virus with Autogun Performance ------------- Evolutions (4) 2000 Regions Visited (7) 1400 Robots Destroyed (51) 255 Value Destroyed (1813) 1813 Prototype IDs (7) 140 Alien Tech Used (0) 0 Bonus (150) 150 TOTAL SCORE: 5758 Bonus ------- High Alert Combat Kills 150 Cogmind --------- Core Integrity 0/850 Matter 300/300 Energy 599/600 System Corruption 3% Temperature Cool (0) Movement Core (100) Ox1 Location -6/Lower Caves Parts ------- > --- POWER (2) -------- (None) > --- PROPULSION (3) --- (None) > --- UTILITY (7) ------ Energy Well > --- WEAPON (3) ------- (None) > --- INVENTORY (4) ---- Medium Treads Flexi-carbon Leg Peak State ------------ > --- POWER ------------ F-cell Engine Light Fission Core > --- PROPULSION ------- Carbon-fiber Leg Titanium Leg Flexi-carbon Leg > --- UTILITY ---------- Advanced Heat Sink Medium Storage Unit Energy Well Compact Matter Pod Improved Light Armor Plating > --- WEAPON ----------- Heavy Laser Heavy Laser Precision Assault Rifle > --- INVENTORY -------- VTOL Module VTOL Module [Rating: 52] Favorites ----------- Power Light Ion Engine Engine Light Ion Engine Power Core Nuclear Core Propulsion Improved Titanium Leg Leg Improved Titanium Leg Wheel Compact Wheel Hover Unit Hover Unit Flight Unit VTOL Module Utility Improved Signal Interpreter Device Terrain Scanner Storage Energy Well Processor Improved Signal Interpreter Hackware System Shield Protection Improved Light Armor Plating Weapon Light Assault Rifle Energy Gun Heavy EM Pulse Gun Ballistic Gun Light Assault Rifle Launcher Rocket Launcher Build | -11 -10 -9 -9 -8 -7 -6 -6 ------- Run | Scr Mat Mat Min Mat Fac Fac Low Slots Evolved 8 | . . 2 . 2 2 2 . Power 1 | . . 1 . . . . . Propulsion 1 | . . . . . . 1 . Utility 5 | . . 1 . 2 1 1 . Weapon 1 | . . . . . 1 . . Parts Attached 74 | 5 7 8 3 8 6 35 2 Power 13 | 1 1 2 . . 2 7 . Engine 7 | 1 1 2 . . . 3 . Core 6 | . . . . . 2 4 . Reactor . | . . . . . . . . Propulsion 27 | 2 4 4 . 2 2 11 2 Treads . | . . . . . . . . Leg 15 | . 3 1 . 2 . 9 . Wheel 2 | 2 . . . . . . . Hover 1 | . 1 . . . . . . Flight 9 | . . 3 . . 2 2 2 Utility 19 | 1 1 . 2 6 1 8 . Device 9 | . 1 . 1 4 1 2 . Storage 5 | 1 . . . . . 4 . Processor 3 | . . . 1 2 . . . Hackware 1 | . . . . . . 1 . Protection 1 | . . . . . . 1 . Artifact . | . . . . . . . . Weapon 15 | 1 1 2 1 . 1 9 . Energy Gun 3 | . . 1 . . . 2 . Energy Cannon . | . . . . . . . . Ballistic Gun 11 | 1 1 1 . . 1 7 . Ballistic Cannon . | . . . . . . . . Launcher 1 | . . . 1 . . . . Special Weapon . | . . . . . . . . Impact Weapon . | . . . . . . . . Slashing Weapon . | . . . . . . . . Piercing Weapon . | . . . . . . . . Special Melee Weapon . | . . . . . . . . Unidentified Prototypes 5 | . . . 1 . . 4 . Parts Lost 35 | . 2 4 . 3 8 14 4 Power 7 | . 1 1 . 1 2 2 . Propulsion 12 | . 1 1 . 1 3 4 2 Utility 8 | . . 1 . . 2 3 2 Weapon 8 | . . 1 . 1 1 5 . Highest Loss Streak 8 | . 2 2 . 2 8 8 4 Average Slot Usage (%) 55 | . 68 78 58 45 46 55 17 Engine 4 | . 11 19 11 3 . 1 . Core 3 | . . . . . 4 6 . Leg 12 | . 14 17 . 3 13 14 2 Flight 2 | . . 3 22 8 . 1 1 Device 7 | . 5 8 . 11 13 3 1 Storage 6 | . 14 9 . . . 11 6 Processor 5 | . . . 7 15 14 . . Energy Gun 2 | . 3 12 . . . . . Ballistic Gun 6 | . 12 7 11 1 . 9 . Naked Turns 4 | . . . . . . 4 . Heaviest Build 49 | 8 12 17 8 8 10 49 14 Greatest Support 54 | 32 32 20 9 40 40 54 45 Greatest Overweight (x) 4 | . 2 4 . . 1 2 1 Average Overweight (x) . | . . . . . . . . Largest Inventory Capacity 8 | 6 6 6 4 4 4 8 8 Average Capacity 5 | 5 6 5 4 4 4 6 4 Most Carried 5 | 2 3 2 2 4 2 5 3 Average Carried . | . . . 1 1 . 1 1 Final Capacity 8 | 6 6 4 4 4 4 8 4 Final Carried 3 | . . 1 2 . . 3 2 Class Distribution -------------------- 77% | Mutant 17% | Scavenger-Mutant 3% | Scavenger-Tank Dominant Class ---------------- Mutant | -10/Materials Mutant | -9/Materials Mutant | -9/Mines Mutant | -8/Materials Mutant | -7/Factory Scavenger-Mutant | -6/Factory Mutant | -6/Lower Caves Resources | -11 -10 -9 -9 -8 -7 -6 -6 ----------- Run | Scr Mat Mat Min Mat Fac Fac Low Matter Collected 1498 | 226 98 109 . . 36 994 35 Remotely . | . . . . . . . . Salvage Created 2206 | . 330 281 . 5 90 1500 . Parts 112 | . 11 19 . 5 12 65 . Haulers Intercepted 1 | . . . . . . 1 . Recyclers Shooed . | . . . . . . . . Parts Field Recycled . | . . . . . . . . Retrieved Matter . | . . . . . . . . Parts Self-Destructed 1 | . . . . . . . 1 Prevented . | . . . . . . . . Kills | -11 -10 -9 -9 -8 -7 -6 -6 ------- Run | Scr Mat Mat Min Mat Fac Fac Low Combat Hostiles Destroyed 42 | . 5 9 . . 2 26 . Melee 1 | . . . . . 1 . . Guns 37 | . 5 7 . . 1 24 . AOE 2 | . . 2 . . . . . Classes Destroyed 10 | . 2 1 . 1 1 5 . Worker 3 | . . . . . . 3 . Builder 2 | . . . . 1 1 . . Tunneler 1 | . . . . . . 1 . Hauler 1 | . . . . . . 1 . Recycler 2 | . 1 . . . . 1 . Swarmer 12 | . . 4 . . 1 7 . Grunt 20 | . 5 5 . . . 10 . Sentry 3 | . . . . . . 3 . Hunter 3 | . . . . . . 3 . Programmer 4 | . . . . . 1 3 . Best Kill Streak 5 | . 4 4 . 1 2 5 . Combat Bots Only 5 | . 3 4 . . 1 5 . Max Kills in Single Turn 2 | . 1 2 . 1 1 1 . Gunslinging 1 | . . 1 . . . . . Exploded 1 | . . 1 . . . . . Melee 1 | . . . . . 1 . . Uniques/NPCs Destroyed . | . . . . . . . . Combat | -11 -10 -9 -9 -8 -7 -6 -6 -------- Run | Scr Mat Mat Min Mat Fac Fac Low Damage Taken 5050 | . 318 408 . 207 1300 2359 458 Core 1673 | . 61 88 . 36 637 522 329 Absorbed by Shields . | . . . . . . . . Core Remaining (%) 71 | 100 75 . 78 93 9 . . Volleys Fired 170 | . 39 17 . 5 7 102 . Largest 3 | . 1 2 . 1 1 3 . Hottest 138 | . 20 65 . 33 23 138 . Shots Fired 240 | . 39 34 . 5 7 155 . Gun 235 | . 39 34 . . 7 155 . Cannon . | . . . . . . . . Launcher 5 | . . . . 5 . . . Special . | . . . . . . . . Kinetic 191 | . 39 17 . . 7 128 . Thermal 27 | . . . . . . 27 . Explosive 5 | . . . . 5 . . . Electromagnetic 17 | . . 17 . . . . . Robot Hit Streak 33 | . 25 18 . 14 15 33 . Robot Miss Streak 5 | . 1 2 . . 1 5 . Penetration Max . | . . . . . . . . Secondary Targets 4 | . . 2 . . . 2 . Max Gunslinging Chain 1 | . . 1 . . . 1 . Shots Hit Robots 214 | . 37 29 . 3 6 139 . Core Hits 154 | . 19 15 . 3 22 95 . Critical Hits 1 | . 1 . . . . . . Critical Kills 1 | . 1 . . . . . . Critical Parts Destroyed . | . . . . . . . . Melee Attacks . | . . . . . . . . Impact . | . . . . . . . . Slashing . | . . . . . . . . Piercing . | . . . . . . . . Sneak Attacks . | . . . . . . . . Combat Hostiles . | . . . . . . . . Follow-up Attacks . | . . . . . . . . Damage Inflicted 4104 | . 297 480 . 278 185 2864 . Guns 3571 | . 294 332 . . 130 2815 . Cannons . | . . . . . . . . Explosions 474 | . . 147 . 278 . 49 . Melee . | . . . . . . . . Ramming 59 | . 3 1 . . 55 . . Kinetic 2837 | . 294 104 . . 130 2309 . Thermal 653 | . . 147 . . . 506 . Explosive 327 | . . . . 278 . 49 . Electromagnetic 228 | . . 228 . . . . . Impact . | . . . . . . . . Slashing . | . . . . . . . . Piercing . | . . . . . . . . Highest Corruption 6 | . . . . . 6 3 3 Average Corruption 3 | . . . . . 5 2 3 Corruption Purged . | . . . . . . . . Effects 17 | . . . . . 4 10 3 Message Errors 4 | . . . . . . 2 2 Matter Fused 2 | . . . . . 1 1 . Heat Flow Errors 3 | . . . . . 2 1 . Energy Discharges 3 | . . . . . 1 2 . Data Loss (minor) 3 | . . . . . . 2 1 Targeting Errors 1 | . . . . . . 1 . Weapon Failures 1 | . . . . . . 1 . Overload Shots . | . . . . . . . . Overflow Damage 25 | . . 8 . 17 . . . Projectiles . | . . . . . . . . Explosions 25 | . . 8 . 17 . . . Melee . | . . . . . . . . Knockbacks . | . . . . . . . . Impact . | . . . . . . . . Kinetic . | . . . . . . . . Secondary . | . . . . . . . . Self-Inflicted Damage 128 | . 1 60 . 49 18 . . Shots 5 | . . 2 . 3 . . . Rammed 40 | . 3 1 . . 36 . . Targets Rammed 45 | . 3 1 . . 41 . . Kicked 5 | . . . . . 5 . . Crushed . | . . . . . . . . Highest Temperature 312 | . 17 30 . . 139 312 . Average Temperature 64 | . 6 13 . . 65 73 . Received Heat Transfer 1176 | . 237 126 . 72 18 678 45 Siege Activations . | . . . . . . . . Robots Corrupted . | . . . . . . . . Combat Hostiles . | . . . . . . . . Parts Fried . | . . . . . . . . Impact Corruptions . | . . . . . . . . Robots Melted 2 | . . . . . . 2 . Combat Hostiles 2 | . . . . . . 2 . Parts Melted 5 | . . . . . . 5 . Heat Transferred 1175 | . . 250 . . . 925 . Parts Sabotaged . | . . . . . . . . Parts Stolen . | . . . . . . . . Parts Stripped . | . . . . . . . . Power Chain Reactions 2 | . . 2 . . . . . Missiles Intercepted . | . . . . . . . . Alert | -11 -10 -9 -9 -8 -7 -6 -6 ------- Run | Scr Mat Mat Min Mat Fac Fac Low Peak Influence 549 | . 143 400 222 128 220 549 . Initial 132 | . . 51 132 73 5 92 . Average 143 | . 82 156 160 65 14 334 . Maximum Alert Level 2 | . . 2 1 . 1 2 . Low Security (%) 66 | 100 100 55 75 100 96 11 . Level 1 23 | . . 43 24 . 3 56 . Level 2 10 | . . 1 . . . 32 . Level 3 . | . . . . . . . . Level 4 . | . . . . . . . . Level 5 . | . . . . . . . . High Security . | . . . . . . . . Max Security . | . . . . . . . . Squads Dispatched 15 | . . 3 . 4 2 6 . Investigation 3 | . . 1 . 1 . 1 . Extermination 2 | . . . . . 1 1 . Reinforcement 10 | . . 2 . 3 1 4 . Assault . | . . . . . . . . Garrison . | . . . . . . . . Intercept . | . . . . . . . . Construction Impeded . | . . . . . . . . Haulers Reinforced 2 | . . . . . . 2 . Stealth | -11 -10 -9 -9 -8 -7 -6 -6 --------- Run | Scr Mat Mat Min Mat Fac Fac Low Distress Signals 5 | . . 2 . 3 . . . Communications Jammed . | . . . . . . . . Distress Signals . | . . . . . . . . Times Spotted 119 | . 8 31 1 10 20 39 10 Peak Tracking Total 15 | . 3 15 6 8 9 5 10 Tactical Retreats 17 | . . 2 2 1 4 6 2 Traps | -11 -10 -9 -9 -8 -7 -6 -6 ------- Run | Scr Mat Mat Min Mat Fac Fac Low Traps Triggered 3 | . . 1 . . . 2 . Indirectly . | . . . . . . . . Trap Hack Attempts . | . . . . . . . . Triggered . | . . . . . . . . Disarmed . | . . . . . . . . Reprogrammed . | . . . . . . . . Reused . | . . . . . . . . Traps Extracted . | . . . . . . . . Installed . | . . . . . . . . Triggered . | . . . . . . . . Machines | -11 -10 -9 -9 -8 -7 -6 -6 ---------- Run | Scr Mat Mat Min Mat Fac Fac Low Machines Disabled 4 | . . 1 . . . 3 . Max in Single Turn 3 | . . 1 . . . 3 . Machines Sabotaged . | . . . . . . . . Garrisons Compromised . | . . . . . . . . Overloaded Fab Kills . | . . . . . . . . Fab Network Shutdowns . | . . . . . . . . Hacking | -11 -10 -9 -9 -8 -7 -6 -6 --------- Run | Scr Mat Mat Min Mat Fac Fac Low Machines Accessed 14 | . 4 2 1 1 3 3 . Terminals 8 | . 3 1 . 1 2 1 . Fabricators . | . . . . . . . . Repair Stations 3 | . 1 1 . . . 1 . Recycling Units 2 | . . . . . 1 1 . Scanalyzers . | . . . . . . . . Garrison Access . | . . . . . . . . Total Hacks 30 | . 11 3 1 3 7 5 . Successful 20 | . 9 3 1 2 2 3 . Failed 10 | . 2 . . 1 5 2 . Catastrophic 1 | . . . . . . 1 . Database Lockouts . | . . . . . . . . Manual . | . . . . . . . . Terminals 18 | . 8 1 . 3 5 1 . Fabricators . | . . . . . . . . Repair Stations 8 | . 3 2 . . . 3 . Recycling Units 3 | . . . . . 2 1 . Scanalyzers . | . . . . . . . . Garrison Access . | . . . . . . . . Terminal Hacks 11 | . 6 1 1 2 1 . . Record 2 | . . . . 2 . . . Robot Analysis 1 | . 1 . . . . . . Prototype ID Bank 1 | . 1 . . . . . . Open Door 1 | . . . 1 . . . . Branch Access Points 1 | . 1 . . . . . . Unreport Threat 1 | . . . . . 1 . . Maintenance Status 1 | . . 1 . . . . . Patrol Status 1 | . 1 . . . . . . Hauler Manifests 1 | . 1 . . . . . . Zone Layout 1 | . 1 . . . . . . Fabricator Hacks . | . . . . . . . . Repair Station Hacks 7 | . 3 2 . . . 2 . Scan Component 3 | . 1 1 . . . 1 . Repair 3 | . 1 1 . . . 1 . Refit 1 | . 1 . . . . . . Recycling Unit Hacks 2 | . . . . . 1 1 . Retrieve Components 2 | . . . . . 1 1 . Scanalyzer . | . . . . . . . . Garrison Access Hacks . | . . . . . . . . Unauthorized Hacks . | . . . . . . . . Terminals . | . . . . . . . . Fabricators . | . . . . . . . . Repair Stations . | . . . . . . . . Recycling Units . | . . . . . . . . Scanalyzers . | . . . . . . . . Garrison Access . | . . . . . . . . Data Cores Recovered . | . . . . . . . . Used . | . . . . . . . . Hacking Detections 8 | . 2 1 . 1 2 2 . Full Trace Events 3 | . 1 . . 1 . 1 . Feedback Events . | . . . . . . . . Feedback Blocked . | . . . . . . . . Robot Schematics Acquired . | . . . . . . . . Robots Built . | . . . . . . . . Matter . | . . . . . . . . Time . | . . . . . . . . Total Robot Build Rating . | . . . . . . . . Part Schematics Acquired . | . . . . . . . . Parts Built . | . . . . . . . . Matter . | . . . . . . . . Time . | . . . . . . . . Total Part Build Rating . | . . . . . . . . Parts Repaired 3 | . 1 1 . . . 1 . Time 92 | . 26 26 . . . 40 . Parts Recycled . | . . . . . . . . Recycled Matter . | . . . . . . . . Retrieved Matter . | . . . . . . . . Retrieved Components 6 | . . . . . . 6 . Parts Scanalyzed . | . . . . . . . . Part Schematics Acquired . | . . . . . . . . Parts Damaged . | . . . . . . . . Bothacking | -11 -10 -9 -9 -8 -7 -6 -6 ------------ Run | Scr Mat Mat Min Mat Fac Fac Low Used RIF Installer . | . . . . . . . . Robots Hacked . | . . . . . . . . Non-combat . | . . . . . . . . Combat . | . . . . . . . . Robot Hacks Applied . | . . . . . . . . Relay Couplers Released . | . . . . . . . . Robots Rewired . | . . . . . . . . Allies Hacked . | . . . . . . . . Hacks Repelled . | . . . . . . . . Allies | -11 -10 -9 -9 -8 -7 -6 -6 -------- Run | Scr Mat Mat Min Mat Fac Fac Low Total Allies . | . . . . . . . . Largest Group . | . . . . . . . . Highest-Rated Group . | . . . . . . . . Highest-Rated Ally . | . . . . . . . . Total Orders 17 | . . . . 14 . 3 . ROAM 12 | . . . . 12 . . . FOLLOW 1 | . . . . . . 1 . EXPLORE 4 | . . . . 2 . 2 . Ally Attacks 15 | . . . . 15 . . . Total Damage . | . . . . . . . . Kills . | . . . . . . . . Allies Corrupted . | . . . . . . . . Allies Melted . | . . . . . . . . Intel | -11 -10 -9 -9 -8 -7 -6 -6 ------- Run | Scr Mat Mat Min Mat Fac Fac Low Robot Analysis Total 1 | . 1 . . . . . . Derelict Logs Recovered 2 | . . . 2 . . . . Drone Launches 20 | . . . . 16 . 4 . Drone Recoveries 3 | . . . . 1 . 2 . Exploration | -11 -10 -9 -9 -8 -7 -6 -6 ------------- Run | Scr Mat Mat Min Mat Fac Fac Low Turns Passed 3455 | 174 395 369 116 167 1120 1037 77 Spaces Moved 2299 | 51 228 302 263 189 566 620 80 Core 86 | 5 2 3 . . 7 8 61 Treads . | . . . . . . . . Legs 923 | . 120 164 . 15 304 315 5 Wheels 62 | 46 16 . . . . . . Hover 90 | . 90 . . . . . . Flight 1138 | . . 135 263 174 255 297 14 Fastest Speed 37 | 50 100 37 37 37 37 37 37 Average Speed 80 | 95 118 84 37 46 88 84 90 Slowest Speed 250 | 100 150 250 37 130 130 155 120 Overloaded Moves . | . . . . . . . . Propulsion Burnouts . | . . . . . . . . Robots Hopped 10 | . . 1 2 2 5 . . Cave-ins Triggered . | . . . . . . . . Exploration Rate (%) 26 | 5 36 28 53 31 18 21 23 Regions Visited 7 Branch Regions 2 Pre-discovered Areas 1 | . . . 1 . . . . Known Exits Taken 2 | . . . 1 1 . . . Unknown Exits Taken 5 | 1 1 1 . . 1 1 . Scrap Searched 1 | . . . . . . . 1 Spaces Dug . | . . . . . . . . Terrain Destroyed 54 | . . 5 . 25 . 24 . Melee . | . . . . . . . . Projectile . | . . . . . . . . AOE 54 | . . 5 . 25 . 24 . Terrain Rammed . | . . . . . . . . Walls Destroyed . | . . . . . . . . Machines Disabled . | . . . . . . . . Actions | -11 -10 -9 -9 -8 -7 -6 -6 --------- Run | Scr Mat Mat Min Mat Fac Fac Low Total 3676 | 176 321 385 279 265 1162 1001 87 Wait 996 | 116 35 46 13 51 540 195 . Move 2273 | 50 227 299 258 184 556 619 80 Hop 9 | . . 1 2 2 4 . . Pick Up 75 | 5 7 8 2 8 6 38 1 Fast Attach . | . . . . . . . . Attach 73 | 5 7 7 3 8 6 35 2 Detach 3 | . . . 1 1 . 1 . Swap 1 | . . 1 . . . . . Drop 31 | . 3 5 . 6 2 11 4 Fire 170 | . 39 17 . 5 7 102 . Melee . | . . . . . . . . Ram 4 | . 3 . . . 1 . . Kick 41 | . . 1 . . 40 . . Crush . | . . . . . . . . Escape Stasis . | . . . . . . . . Rewire . | . . . . . . . . Trap . | . . . . . . . . Miscellaneous . | . . . . . . . . Route ------- -11/Scrapyard -10/Materials (discovered 2 exits: *Mat / Min) -9/Materials -9/Mines -8/Materials (discovered 2 exits: *Fac x2) -7/Factory -6/Factory -6/Lower Caves History --------- Turn | Location | Event 8 | -11/Scrapyard | Discovered new exit (range 15) 175 | -11/Scrapyard | Entered Materials 310 | -10/Materials | Build established: Mutant 410 | -10/Materials | Identified exit to Mines 504 | -10/Materials | Repaired Lgt. Assault Rifle 525 | -10/Materials | Discovered new exit (range 8) 570 | -10/Materials | Entered another Materials area 570 | -9/Materials | Evolved 2 slots: Power x1, Utility x1 670 | -9/Materials | Repaired Aluminum Leg 929 | -9/Materials | Discovered new exit (range 16) 939 | -9/Materials | Entered Mines 954 | -9/Mines | Discovered new exit (range 6) 961 | -9/Mines | Received a Rocket Launcher from a helpful Derelict 984 | -9/Mines | Found the Drone Emporium 987 | -9/Mines | Found Prototype Device 988 | -9/Mines | Identified Bomb Drone Bay 1011 | -9/Mines | Learned location of Storage (-9) 1018 | -9/Mines | A weapon hastily lodged in a ceiling crevice suddenly fell to the ground 1055 | -9/Mines | Identified exit to Materials 1055 | -9/Mines | Entered Materials 1055 | -8/Materials | Evolved 2 slots: Utility x2 1056 | -8/Materials | Identified exit to Factory 1157 | -8/Materials | Discovered exit to Factory (range 15) 1222 | -8/Materials | Entered Factory 1222 | -7/Factory | Evolved 2 slots: Utility x1, Weapon x1 2198 | -7/Factory | Core integrity fell below 50% 2241 | -7/Factory | Core integrity fell below 20% 2268 | -7/Factory | Lost 8 parts (2p3n2u1w) 2331 | -7/Factory | Discovered new exit (range 10) 2342 | -7/Factory | Entered another Factory area 2342 | -6/Factory | Evolved 2 slots: Propulsion x1, Utility x1 2482 | -6/Factory | Lost 3 parts (1n1u1w) 2871 | -6/Factory | Repaired Imp. Heavy Machine Gun 3125 | -6/Factory | Build established: Scavenger-Mutant 3249 | -6/Factory | Core integrity fell below 50% 3307 | -6/Factory | Lost 8 parts (1p2n2u3w) 3360 | -6/Factory | Discovered new exit (range 16) 3379 | -6/Factory | Entered Lower Caves 3386 | -6/Lower Caves | Attracted the attention of an 0b10 outpost 3394 | -6/Lower Caves | Spotted B-75 Beast 3404 | -6/Lower Caves | Core integrity fell below 20% 3426 | -6/Lower Caves | Lost 4 parts (1p2n1u) 3456 | -6/Lower Caves | Destroyed by S-27 Virus with Autogun Last Messages --------------- 03386_ Dropped Carbon-fiber Leg. 03386_ Penetrated by Slug. 03387_ Dropped Carbon-fiber Leg. 03389_ Penetrated by Slug. 03389_ Dropped Carbon-fiber Leg. 03390_ Y-64 Sentinel: "REQUESTING BACKUP." 03395_ VTOL Module destroyed. 03395_ Adv. Heat Sink destroyed. 03395_ S-27 Virus destroyed. 03408_ UVLVC53ZD=RT1FF2BZU8O2YP|6K%R 03426_ System Shield destroyed. 03439_ Searching scrap... 03439_ Found Mak. Terrain Scanner. 03439_ Found Med. Treads. 03439_ Found Imp. Terrain Scan Processor. 03439_ Found 40 Matter. 03440_ Acquired 35 matter. 03441_ Acquired Med. Treads. 03451_ System corrupted: Component data lost. [Achievement: First Step to Greatness] Map ----- +----------------------------------------------------+ | ?????????????????????# ???# ## | | ??????????????????????# ??# ######## | | ???????????????????????# ## ##?????? | | ????????????????????????# #?????? | | ????????????????????????# #?????? | | ??????????????????? ## #?????? | | ??????????????????? ### ## #?????? | | ???????????????????? ???# ##?????? | | ???????????????????? ???## ##??????? | | ????????????????????? ?????# ##???????? | | ?????????????????????? ??????## ##????????? | | ???????????????????????????????### ####?????????? | | ?????????????????????????????????## #######??????? | | ??????????????????????????????????# #??????? | | ??????????????????????????????????# ##### #??????? | | ??????????????????????????????????#!#???#????????? | | ????????????????????????????????###%#?? #????????? | | ????????????????????????????????# ! #? ##???????? | | ????????????????????????????????# ### ##??????? | | ?????????????????????############ ### ##?????? | | ?????????????????? #?????? | | ?????????????????? #?????? | | ?????????????????????############ ## #?????? | | ?????????????????????## # s ##?? #?????? | | ?????????????????????# #???? #?????? | | ?????????????????????# @ ### #???? ????? | | ??????????????????# #?# #????? ??? | | ?????????????? #?# #??????? ???? | | ?????????????####### #####?## #???????##???? | | ???????????????????# #???????# ???????????? | | ?????????????????? ????????# #??????????? | | ????????????????# ?????????### #??????????? | | ????????????????# ????????????# #??????????? | | ???????????????# ??????????????# ??????????? | | ???????????????# ???????????????? ##?????????? | | ???????????????# #????????????????###??????????? | | ???????????????# ??????????????????????????????? | | ???????????????? ???????????????????????????????? | | ?????????????????????????????????????????????????? | | ?????????????????????????????????????????????????? | | ?????????????????????????????????????????????????? | | ?????????????????????????????????????????????????? | | ?????????????????????????????????????????????????? | | ?????????????????????????????????????????????????? | | ?????????????????????????????????????????????????? | | ?????????????????????????????????????????????????? | | ?????????????????????????????????????????????????? | | ?????????????????????????????????????????????????? | | ?????????????????????????????????????????????????? | | ?????????????????????????????????????????????????? | +----------------------------------------------------+ Best States ------------- Heat Dissipation 56 Energy Generation 32 Energy Capacity 1060 Matter Stores 428 Matter Capacity 450 Sight Range 16 Robot Scan Range 20 Terrain Scan Range 14 Terrain Scan Density 110 Armor Coverage 150 Resistance: KI 20 Resistance: TH 20 Resistance: EX 20 Resistance: EM 20 Resistance: I 20 Resistance: S 20 Resistance: P 20 Evasion (%) 62 Offensive Hacking 10 Defensive Hacking 10 Item Schematics ----------------- None Robot Schematics ------------------ None Fabricated ------------ Nothing Alien Tech Used ----------------- None Achievements -------------- Close Call First Step to Greatness I Spy It's Just You Loot Pinata Release The Drones! Storm Trooper Challenges ------------ None Game ------ Seed MinesnifferDispersionSystem Manual? 0 Play Time 00:45:43 Cumulative 23.5 hours Start 2021.03.18 @ 14:20:10 End 2021.03.18 @ 15:04:54 Sessions 1 Manual Loads 0 Difficulty Adventurer Special Mode None Game No. 34 Rogue 32 Adventurer 2 Explorer 0 Win Type - Total 0 Types 0/0/0/0/0/0/0/0/0 Lore% 21 Gallery% 33 Achievement% 9 Wizard Run 0 Options --------- ASCII 0 Keyboard 0 Movement Numpad Keybinds 0 Fullscreen 2 Font 18/X11 Map View 76x50 Tactical HUD 1 Map Filters NONE Filters NONE Steam 1 RUN: 0d102418-39a2-4f10-b20b-d36173759a6f